bitfinex-derivatives/quotes_SOLF0:USTF0_20250625
["timestamp","ask_amount","ask_price","bid_price","bid_amount"]
[1750842677762,36.58,146.26,146.19,3.3741327]
[1750842677957,6.8345,146.24,146.16,41.15]
[1750842678164,3.3741327,146.23,146.18,6.837]
[1750842678363,36.54,146.22,146.16,42.2532327]
[1750842678566,6.8362,146.21,146.16,42.2532327]
[1750842678966,36.54,146.22,146.16,42.2532327]
[1750842679264,2.2049,146.24,146.18,3.3741327]
[1750842679470,36.54,146.26,146.18,3.3741327]
[1750842680162,6.8343,146.25,146.23,6.8347]
[1750842680368,36.54,146.26,146.2,3.3741327]
[1750842680763,6.8343,146.25,146.23,6.8348]
[1750842681570,43.3737,146.26,146.24,6.8345]
[1750842682273,36.54,146.26,146.25,6.834]
[1750842682672,44.4848327,146.29,146.25,6.834]
[1750842683270,44.4848327,146.29,146.24,6.8343]
[1750842683470,3.3741327,146.27,146.24,6.8343]
[1750842683663,3.3741327,146.27,146.25,6.8337]
[1750842683865,2.2827,146.28,146.21,3.3741327]
[1750842684370,2.2827,146.28,146.26,6.8335]
[1750842685069,36.54,146.29,146.23,3.3741327]
[1750842685269,36.54,146.29,146.22,3.3741327]
[1750842685466,36.54,146.29,146.24,6.8342]
[1750842685670,3.3741327,146.28,146.24,6.8342]
[1750842686272,6.8334,146.27,146.24,6.8342]
[1750842686671,6.8334,146.27,146.25,6.834]
[1750842686972,6.8334,146.27,146.22,3.3741327]
[1750842687574,6.8334,146.27,146.24,6.8342]
[1750842688376,6.8337,146.26,146.24,6.8342]
[1750842688767,3.3741327,146.25,146.18,3.3741327]
[1750842688971,6.8353,146.23,146.18,3.3741327]
[1750842689579,6.8353,146.23,146.2,6.836]
[1750842690376,6.8357,146.22,146.2,6.836]
[1750842690873,10.2093327,146.23,146.2,6.836]
[1750842691378,10.2091327,146.23,146.21,6.8359]
[1750842691574,6.835,146.23,146.21,6.8359]
[1750842692279,6.835,146.23,146.2,6.8361]
[1750842692779,6.835,146.23,146.16,632.8332327]
[1750842693881,6.835,146.23,146.2,6.8359]
[1750842694277,36.54,146.25,146.16,629.4591]
[1750842694478,36.54,146.25,146.2,3.3741327]
[1750842694671,36.54,146.25,146.18,3.3741327]
[1750842694873,39.9141327,146.25,146.16,42.2132327]
[1750842696083,6.8348,146.24,146.16,42.2132327]
[1750842696281,39.9141327,146.25,146.16,42.2132327]
[1750842697077,6.8355,146.22,146.16,38.8391]
[1750842697386,3.3741327,146.23,146.16,38.8391]
[1750842697885,6.8362,146.21,146.18,6.8373]
[1750842698186,3.3741327,146.23,146.16,38.8391]
[1750842698387,6.8362,146.21,146.18,6.8371]
[1750842698587,3.3741327,146.23,146.16,38.8391]
[1750842698781,3.3741327,146.23,146.14,5.6599327]
[1750842698982,6.8366,146.2,146.17,6.8375]
[1750842700190,6.8366,146.2,146.18,6.8373]
[1750842701596,43.3761,146.21,146.14,5.6599327]
[1750842702089,43.3761,146.21,146.18,6.8371]
[1750842702284,6.8364,146.2,146.14,5.6599327]
[1750842702492,3.3741327,146.2,146.16,6.8382]
[1750842702686,3.3741327,146.18,146.09,85.82735362]
[1750842702882,3.3741327,146.13,146.09,83.39825362]
[1750842703088,3.3741327,146.13,146.09,6.8413]
[1750842703279,6.8406,146.11,146.05,39.9141327]
[1750842703697,3.3741327,146.11,146.05,39.9141327]
[1750842703886,3.3741327,146.12,146.05,39.9141327]
[1750842704189,3.3741327,146.12,146.09,6.8413]
[1750842704391,3.3741327,146.16,146.09,3.3741327]
[1750842704692,3.3741327,146.16,146.13,6.8394]
[1750842704894,3.3741327,146.16,146.09,3.3741327]
[1750842705197,43.378,146.17,146.14,6.8389]
[1750842705392,43.378,146.17,146.09,3.3741327]
[1750842705393,36.54,146.17,146.11,3.3741327]
[1750842705784,36.54,146.17,146.15,6.8384]
[1750842706087,36.54,146.17,146.11,3.3741327]
[1750842706288,36.54,146.17,146.11,8.1848327]
[1750842707593,36.54,146.17,146.15,6.8385]
[1750842707798,43.3779,146.17,146.15,6.8385]
[1750842709095,36.54,146.17,146.15,6.8385]
[1750842709805,36.54,146.17,146.16,6.8383]
[1750842710304,43.3778,146.17,146.11,8.1848327]
[1750842710510,36.54,146.17,146.15,6.8386]
[1750842711306,36.54,146.17,146.14,6.839]
[1750842712206,36.54,146.17,146.15,6.8386]
[1750842712408,43.3779,146.17,146.11,8.1848327]
[1750842712809,43.3779,146.17,146.14,6.839]
[1750842713806,36.54,146.17,146.11,8.1848327]
[1750842714610,36.54,146.17,146.15,6.8385]
[1750842714806,6.8378,146.17,146.15,6.8385]
[1750842715711,6.8376,146.18,146.15,6.8385]
[1750842717316,6.8378,146.17,146.15,6.8385]
[1750842717709,39.8741327,146.2,146.15,6.8385]
[1750842718111,6.8375,146.18,146.15,6.8385]
[1750842718901,6.8375,146.18,146.16,6.8382]
[1750842719106,6.8379,146.17,146.11,8.1848327]
[1750842719404,3.3741327,146.18,146.11,8.1848327]
[1750842719711,6.8382,146.17,146.11,8.1848327]
[1750842720014,6.8382,146.17,146.14,6.8388]
[1750842721515,6.8382,146.17,146.15,6.8387]
[1750842721703,6.8376,146.18,146.15,6.8387]
[1750842722210,6.8376,146.18,146.11,8.1848327]
[1750842722406,6.8376,146.18,146.16,6.8382]
[1750842722709,44.4623327,146.23,146.13,36.5]
[1750842722915,36.5,146.23,146.21,6.8359]
[1750842723305,43.3352,146.23,146.21,6.8359]
[1750842724116,36.5,146.23,146.21,6.8359]
[1750842724320,6.8348,146.24,146.21,6.8359]
[1750842724816,3.3741327,146.23,146.18,2.2231]
[1750842725215,10.2089327,146.24,146.18,5.5972327]
[1750842725713,6.835,146.23,146.18,2.2231]
[1750842725918,3.3741327,146.24,146.18,2.2231]
[1750842726213,3.3741327,146.24,146.19,6.8366]
[1750842726410,6.8359,146.22,146.19,6.8366]
[1750842727217,6.836,146.21,146.19,6.8366]
[1750842727415,6.836,146.21,146.18,6.8371]
[1750842727914,3.3741327,146.2,146.14,2.2231]
[1750842728111,3.3741327,146.18,146.13,36.5]
[1750842728512,6.8371,146.19,146.16,6.838]
[1750842728712,3.3741327,146.2,146.13,39.8741327]
[1750842728912,3.37056837,146.15,145.96,20.54]
[1750842729113,3.37056837,146.08,145.99,3.37056837]
[1750842729321,3.37056837,146.08,146.0,6.904]
[1750842729524,3.37056837,146.08,146.01,3.37056837]
[1750842729713,36.5,146.09,146.02,36.5]
[1750842729910,36.5,146.09,146.05,6.8431]
[1750842730210,36.5,146.09,146.03,3.37056837]
[1750842730417,36.5,146.09,146.02,36.5]
[1750842730721,3.37279196,146.12,146.04,3.37279196]
[1750842731311,10.21319196,146.12,146.04,3.37279196]
[1750842731509,3.37279196,146.12,146.04,3.37279196]
[1750842731913,10.21299196,146.12,146.08,6.8417]
[1750842732113,3.37279196,146.12,146.08,6.8417]
[1750842732313,5.62021899,146.12,146.08,6.8417]
[1750842732515,5.62021899,146.12,146.04,62.0]
[1750842732716,12.46061899,146.12,146.09,6.8415]
[1750842733221,43.3398,146.13,146.1,6.841]
[1750842733417,36.5,146.13,146.04,5.62021899]
[1750842734116,13.6697,146.24,146.08,5.62021899]
[1750842734322,5.62021899,146.18,146.09,4.7417]
[1750842734524,36.52,146.17,146.09,7.1009]
[1750842734822,6.8386,146.16,146.13,6.8394]
[1750842735520,6.8383,146.16,146.09,7.1009]
[1750842736021,6.8388,146.15,146.12,6.8399]
[1750842737533,6.8384,146.16,146.13,6.8396]
[1750842737925,36.52,146.17,146.09,7.1009]
[1750842738126,43.3581,146.17,146.14,6.839]
[1750842738926,6.8383,146.16,146.13,6.8395]
[1750842742424,6.8383,146.16,146.14,6.8391]
[1750842742630,43.358,146.17,146.09,7.1009]
[1750842742832,43.358,146.17,146.1,5.62021899]
[1750842743130,43.358,146.17,146.14,6.8388]
[1750842743330,6.8383,146.16,146.14,6.8388]
[1750842743530,36.52,146.17,146.09,12.72111899]
[1750842743726,36.52,146.17,146.09,7.1009]
[1750842743927,5.62021899,146.16,146.09,7.1009]
[1750842744232,5.62021899,146.16,146.11,6.8405]
[1750842744434,6.839,146.15,146.09,7.1009]
[1750842744734,36.52,146.17,146.09,7.1009]
[1750842745133,6.8386,146.16,146.13,6.8396]
[1750842745832,6.8389,146.15,146.12,6.84]
[1750842746035,36.52,146.17,146.12,6.84]
[1750842746223,36.52,146.17,146.09,12.72111899]
[1750842746424,6.8385,146.16,146.13,6.8393]
[1750842746623,36.52,146.17,146.13,6.8393]
[1750842746826,6.8386,146.16,146.13,6.8393]
[1750842749137,6.8388,146.15,146.13,6.8393]
[1750842750440,6.8385,146.16,146.13,6.8393]
[1750842752441,6.8385,146.16,146.14,6.8392]
[1750842753045,36.52,146.17,146.09,12.72111899]
[1750842753046,5.62021899,146.2,146.11,5.62021899]
[1750842753344,37.1,146.21,146.13,5.62021899]
[1750842753539,6.8369,146.19,146.17,6.8376]
[1750842753939,37.1,146.21,146.17,6.8376]
[1750842754244,6.8366,146.2,146.18,6.8373]
[1750842754644,6.8366,146.2,146.13,3.36773848]
[1750842754837,6.8366,146.2,146.18,6.8373]
[1750842755241,6.8366,146.2,146.13,3.36773848]
[1750842756041,43.9361,146.21,146.13,3.36773848]
[1750842756237,4.4486,146.23,146.15,3.36773848]
[1750842756546,41.5486,146.23,146.19,6.8365]
[1750842757142,6.836,146.21,146.19,6.8365]
[1750842757344,6.836,146.21,146.18,6.8371]
[1750842757545,3.36773848,146.22,146.18,6.8371]
[1750842758246,3.36773848,146.2,146.1,3.36773848]
[1750842758445,3.36773848,146.15,146.09,44.2009]
[1750842758638,6.8392,146.14,146.11,6.8402]
[1750842758834,3.36773848,146.15,146.09,44.2009]
[1750842759447,10.20693848,146.15,146.12,6.8398]
[1750842761348,10.20693848,146.15,146.13,6.8396]
[1750842762046,43.9386,146.16,146.09,44.2009]
[1750842762233,37.1,146.19,146.09,44.2009]
[1750842762436,37.1,146.19,146.12,3.36773848]
[1750842762650,6.8376,146.18,146.12,3.36773848]
[1750842762846,37.1,146.19,146.12,3.36773848]
[1750842763147,43.9371,146.19,146.16,6.838]
[1750842763446,37.1,146.19,146.16,6.838]
[1750842763848,37.1,146.19,146.12,3.36773848]
[1750842764049,37.1,146.22,146.16,3.36773848]
[1750842764242,43.9357,146.22,146.19,6.8364]
[1750842765050,43.9357,146.22,146.2,6.8362]
[1750842765251,37.1,146.22,146.16,5.56203848]
[1750842765451,37.1,146.22,146.16,10.20563848]
[1750842766752,37.1,146.22,146.2,6.836]
[1750842767753,37.1,146.22,146.19,6.8367]
[1750842767942,40.46773848,146.22,146.19,6.8367]
[1750842768146,40.46773848,146.22,146.16,2.1943]
[1750842768346,40.46773848,146.22,146.17,6.8376]
[1750842768749,6.8375,146.18,146.16,6.8382]
[1750842769246,6.8375,146.18,146.13,3.36773848]
[1750842769450,6.8375,146.18,146.15,6.8384]
[1750842770962,6.8375,146.18,146.16,6.8382]
[1750842773666,39.96773848,146.21,146.12,10.43553848]
[1750842774168,6.8366,146.2,146.17,6.8374]
[1750842775767,6.8366,146.2,146.12,10.43553848]
[1750842776267,6.8366,146.2,146.17,6.8374]
[1750842776468,6.8366,146.2,146.14,3.36773848]
[1750842776868,46.80383848,146.21,146.19,6.8368]
[1750842777168,39.96773848,146.21,146.14,3.36773848]
[1750842777368,36.6,146.21,146.2,6.8364]
[1750842779169,36.6,146.21,146.19,6.8366]
[1750842779370,39.96773848,146.21,146.15,36.6]
[1750842779758,6.8368,146.2,146.15,36.6]
[1750842779963,6.8368,146.2,146.17,6.8375]
[1750842781669,6.8368,146.2,146.18,6.8372]
[1750842783775,732.0061,146.26,146.13,13.679]
[1750842783975,39.96773848,146.25,146.17,3.36773848]
[1750842784370,3.36773848,146.23,146.15,3.36773848]
[1750842784975,6.8364,146.2,146.17,6.8376]
[1750842785177,39.96773848,146.21,146.14,36.6]
[1750842785774,6.8366,146.2,146.17,6.8374]
[1750842786176,6.837,146.19,146.17,6.8374]
[1750842786369,6.837,146.19,146.16,6.838]
[1750842786569,6.837,146.19,146.14,36.6]
[1750842786877,6.8366,146.2,146.17,6.8374]
[1750842787178,39.96773848,146.21,146.17,6.8374]
[1750842787477,6.8371,146.19,146.17,6.8374]
[1750842788279,6.8377,146.18,146.13,3.36773848]
[1750842788478,3.36773848,146.19,146.13,3.36773848]
[1750842788677,36.6,146.21,146.15,3.36773848]
[1750842788878,43.4361,146.21,146.15,3.36773848]
[1750842789274,43.4361,146.21,146.18,6.8369]
[1750842789471,43.4361,146.21,146.15,3.36773848]
[1750842789977,36.6,146.21,146.19,6.8364]
[1750842790178,36.6,146.21,146.15,3.36773848]
[1750842790777,36.6,146.21,146.19,6.8365]
[1750842791077,43.4359,146.21,146.19,6.8365]
[1750842792280,6.8359,146.21,146.19,6.8365]
[1750842794376,3.36773848,146.24,146.17,3.36773848]
[1750842794576,36.6,146.24,146.17,3.36773848]
[1750842794885,6.8353,146.23,146.21,6.8356]
[1750842795584,6.8356,146.22,146.2,6.8362]
[1750842795879,36.6,146.24,146.17,3.36773848]
[1750842796085,6.8363,146.21,146.18,6.837]
[1750842796780,6.8358,146.22,146.15,39.96705276]
[1750842799283,6.8358,146.22,146.2,6.8363]
[1750842799485,6.8351,146.23,146.17,3.36705276]
[1750842800085,43.4347,146.24,146.22,6.8354]
[1750842800281,43.4347,146.24,146.17,3.36705276]
[1750842800887,43.4347,146.24,146.21,6.8355]
[1750842801486,43.4347,146.24,146.22,6.8354]
[1750842803189,6.835,146.23,146.21,6.8357]
[1750842803390,36.6,146.24,146.18,3.36594041]
[1750842803589,43.4348,146.24,146.22,6.8354]
[1750842804584,36.5,146.25,146.24,230.795]
[1750842805989,43.334,146.25,146.24,230.795]
[1750842808281,43.334,146.25,146.24,237.6295]
[1750842808694,43.334,146.25,146.24,230.795]
[1750842814296,48.087,146.25,146.24,230.795]
[1750842815599,43.334,146.25,146.24,230.795]
[1750842816198,36.5,146.25,146.24,230.795]
[1750842817397,43.334,146.25,146.24,230.795]
[1750842823704,43.334,146.25,146.23,6.8348]
[1750842824305,6.8345,146.24,146.22,6.835]
[1750842824607,36.5,146.25,146.22,6.835]
[1750842824904,43.3343,146.25,146.23,6.8349]
[1750842827102,43.3343,146.25,146.22,6.8352]
[1750842827306,6.8346,146.24,146.22,6.8352]
[1750842828712,43.3343,146.25,146.22,6.8352]
[1750842828911,43.3343,146.25,146.2,136.14]
[1750842829105,39.86594041,146.26,146.25,187.1132]
[1750842829609,46.69954041,146.26,146.25,187.1132]
[1750842829810,43.3336,146.26,146.25,187.1132]
[1750842831008,36.5,146.26,146.25,187.1132]
[1750842831208,4.5873,146.31,146.25,187.1132]
[1750842831508,6.8314,146.31,146.25,187.1132]
[1750842831705,627.08,146.33,146.26,3.36594041]
[1750842832012,36.5,146.33,146.31,6.8309]
[1750842832205,36.5,146.33,146.28,3.36594041]
[1750842832597,36.5,146.33,146.26,138.4124]
[1750842832804,36.5,146.33,146.27,3.36594041]
[1750842833011,3.36594041,146.32,146.26,138.4124]
[1750842833410,36.5,146.33,146.26,138.4124]
[1750842833813,6.831,146.32,146.29,6.8319]
[1750842834011,6.831,146.32,146.27,3.36594041]
[1750842834213,36.5,146.33,146.27,3.36594041]
[1750842834414,6.8308,146.32,146.29,6.8319]
[1750842835213,6.8314,146.31,146.29,6.8321]
[1750842835416,6.8314,146.31,146.27,3.36594041]
[1750842835918,6.8314,146.31,146.28,6.8325]
[1750842836115,3.36594041,146.32,146.26,138.4124]
[1750842836515,3.36594041,146.32,146.28,6.8324]
[1750842836717,6.8317,146.3,146.26,138.4124]
[1750842837221,6.8313,146.31,146.28,6.8323]
[1750842837417,6.8313,146.31,146.26,138.4124]
[1750842837821,6.8318,146.3,146.28,6.8322]
[1750842838023,6.8318,146.3,146.26,138.4124]
[1750842838518,3.36594041,146.32,146.26,138.4124]
[1750842838717,3.36594041,146.28,146.25,187.1132]
[1750842838924,3.36594041,146.26,146.25,187.1132]
[1750842839115,10.19954041,146.26,146.25,187.1132]
[1750842840013,3.36594041,146.26,146.19,138.4435]
[1750842840219,3.36594041,146.24,146.2,6.8361]
[1750842840621,3.36594041,146.24,146.19,2.4235]
[1750842840821,3.36594041,146.24,146.2,6.8363]
[1750842841125,3.36594041,146.22,146.19,2.4235]
[1750842841318,3.36594041,146.22,146.2,6.8363]
[1750842841622,39.78594041,146.24,146.19,2.4235]
[1750842841825,39.78594041,146.24,146.19,9.2601]
[1750842842125,6.8353,146.23,146.19,2.4235]
[1750842842426,6.8353,146.23,146.2,6.836]
[1750842842921,46.62074041,146.24,146.19,2.4235]
[1750842843924,39.78594041,146.24,146.22,6.8354]
[1750842844225,36.42,146.24,146.19,2.4235]
[1750842845328,36.42,146.24,146.23,186.8078]
[1750842846527,43.2545,146.24,146.23,186.8078]
[1750842848624,597.3079,146.31,146.23,186.8078]
[1750842848831,3.36594041,146.26,146.23,186.8078]
[1750842849032,39.80594041,146.26,146.23,186.8078]
[1750842849224,46.63954041,146.26,146.23,6.8347]
[1750842849729,39.80594041,146.26,146.24,6.8344]
[1750842849929,39.80594041,146.26,146.19,42.22944041]
[1750842851229,39.80594041,146.26,146.19,38.8635]
[1750842851534,6.8348,146.24,146.2,6.8362]
[1750842851927,39.80594041,146.26,146.19,38.8635]
[1750842852334,6.8353,146.23,146.2,6.8364]
[1750842852537,6.8353,146.23,146.19,38.8635]
[1750842852738,6.8353,146.23,146.19,2.4235]
[1750842852931,6.8357,146.22,146.19,9.2601]
[1750842853133,39.80594041,146.22,146.16,36.44]
[1750842853440,3.36594041,146.18,146.1,39.80594041]
[1750842853634,39.80594041,146.18,146.1,3.36594041]
[1750842853830,138.3368,146.25,146.13,6.8396]
[1750842854045,3.36594041,146.17,146.1,3.36594041]
[1750842854337,39.80594041,146.19,146.14,6.8389]
[1750842854638,6.8376,146.18,146.13,2.3563]
[1750842854841,36.44,146.2,146.14,3.36594041]
[1750842855035,39.80594041,146.23,146.16,3.36594041]
[1750842855338,39.80594041,146.23,146.19,6.8366]
[1750842855640,6.8355,146.22,146.19,6.8366]
[1750842855839,6.8355,146.22,146.17,2.3631]
[1750842856232,43.2752,146.23,146.17,2.3631]
[1750842856640,36.44,146.23,146.18,3.36594041]
[1750842856939,43.2752,146.23,146.18,3.36594041]
[1750842857435,6.8355,146.22,146.18,3.36594041]
[1750842857638,6.8355,146.22,146.19,6.8366]
[1750842857831,6.8355,146.22,146.17,38.8031]
[1750842858035,6.8355,146.22,146.19,6.8365]
[1750842858439,6.8355,146.22,146.17,38.8031]
[1750842859534,43.2752,146.23,146.21,6.8359]
[1750842859734,36.44,146.23,146.17,38.8031]
[1750842860038,6.8357,146.22,146.19,6.8365]
[1750842860941,6.8357,146.22,146.2,6.8363]
[1750842862144,6.8357,146.22,146.19,6.8366]
[1750842862335,3.36594041,146.22,146.14,39.74594041]
[1750842862742,6.8366,146.2,146.17,6.8375]
[1750842864043,6.8366,146.2,146.18,6.8373]
[1750842864242,6.837,146.19,146.14,39.74594041]
[1750842864442,6.837,146.19,146.17,6.8377]
[1750842864746,3.36594041,146.2,146.14,36.38]
[1750842865745,3.36594041,146.18,146.13,4.7649]
[1750842865941,3.36594041,146.18,146.13,9.1957]
[1750842866340,3.36594041,146.18,146.13,2.3563]
[1750842866642,3.36594041,146.16,146.09,3.36594041]
[1750842867041,3.36594041,146.18,146.09,3.36594041]
[1750842867346,3.36594041,146.18,146.11,3.36594041]
[1750842867644,6.8381,146.17,146.14,6.8389]
[1750842868345,6.8383,146.16,146.14,6.8389]
[1750842868646,6.8383,146.16,146.11,3.36594041]
[1750842869145,6.8383,146.16,146.14,6.8391]
[1750842869348,6.838,146.17,146.14,6.8391]
[1750842871147,6.8383,146.16,146.14,6.8391]
[1750842871642,6.838,146.17,146.14,6.8391]
[1750842871944,3.36594041,146.15,146.08,40.9717]
[1750842872346,10.20484041,146.15,146.12,6.8397]
[1750842872649,3.36594041,146.15,146.12,6.8397]
[1750842872947,6.8392,146.14,146.11,6.8405]
[1750842873148,3.36594041,146.15,146.08,40.9717]
[1750842873646,6.8395,146.14,146.11,6.8405]
[1750842875348,6.8397,146.13,146.1,6.8409]
[1750842875948,6.8399,146.13,146.1,6.8409]
[1750842876146,3.36594041,146.12,146.05,2.38]
[1750842876344,3.36594041,146.11,146.05,2.38]
[1750842876548,10.20684041,146.11,146.05,2.38]
[1750842877245,10.20684041,146.11,146.08,6.8418]
[1750842879153,3.36594041,146.11,146.05,2.38]
[1750842880054,6.8416,146.09,146.06,6.8426]
[1750842880253,3.36594041,146.11,146.05,2.38]
[1750842880452,3.36594041,146.11,146.04,626.92]
[1750842880648,6.8413,146.1,146.07,6.8424]
[1750842881353,6.8413,146.1,146.08,6.842]
[1750842881655,39.76594041,146.13,146.05,3.36594041]
[1750842882250,46.60584041,146.13,146.11,6.8406]
[1750842882450,3.36594041,146.15,146.11,6.8406]
[1750842882655,3.36594041,146.15,146.08,38.6781]
[1750842883353,6.8394,146.14,146.08,38.6781]
[1750842883555,6.8394,146.14,146.09,2.4042]
[1750842883856,10.20484041,146.15,146.09,2.4042]
[1750842884957,10.20484041,146.15,146.12,6.8398]
[1750842886559,10.20484041,146.15,146.13,6.8396]
[1750842887861,3.36594041,146.15,146.13,6.8396]
[1750842888056,3.36594041,146.15,146.09,2.4042]
[1750842888260,10.20494041,146.15,146.09,2.4042]
[1750842888463,3.36594041,146.13,146.09,2.4042]
[1750842888663,3.36594041,146.11,146.05,36.4]
[1750842888872,6.8413,146.1,146.05,36.4]
[1750842889364,6.8415,146.09,146.07,6.8421]
[1750842889556,3.36594041,146.11,146.07,6.8421]
[1750842889758,3.36594041,146.11,146.05,36.4]
[1750842889966,6.8413,146.1,146.05,36.4]
[1750842890868,3.36594041,146.11,146.05,36.4]
[1750842891864,6.8417,146.09,146.07,6.8421]
[1750842893167,36.4,146.12,146.08,6.842]
[1750842893356,39.76594041,146.12,146.08,6.842]
[1750842894068,6.8408,146.11,146.08,6.842]
[1750842895073,46.60624041,146.12,146.05,36.4]
[1750842895272,46.60624041,146.12,146.05,39.76594041]
[1750842895569,46.60624041,146.12,146.05,3.36594041]
[1750842895770,3.36594041,146.1,146.02,42.11684041]
[1750842896272,36.4,146.12,146.02,42.11684041]
[1750842896473,3.36594041,146.11,146.02,42.11684041]
[1750842896772,6.8412,146.1,146.07,6.8421]
[1750842898175,6.8412,146.1,146.08,6.842]
[1750842899074,10.20674041,146.11,146.08,6.842]
[1750842899275,36.4,146.12,146.09,6.8415]
[1750842899472,6.8404,146.12,146.09,6.8415]
[1750842899979,6.8404,146.12,146.1,6.8409]
[1750842900880,3.36594041,146.13,146.09,6.8413]
[1750842901279,36.38,146.15,146.08,2.352]
[1750842901481,6.8384,146.16,146.08,5.71794041]
[1750842901779,3.36594041,146.17,146.1,3.36594041]
[1750842902083,36.38,146.18,146.12,3.36594041]
[1750842902287,3.36594041,146.19,146.12,3.36594041]
[1750842902583,36.38,146.21,146.14,3.36594041]
[1750842902881,36.38,146.21,146.15,2.1968]
[1750842903188,3.36594041,146.2,146.15,2.1968]
[1750842903786,6.8376,146.18,146.15,9.0354]
[1750842904091,3.36594041,146.2,146.15,2.1968]
[1750842904581,3.36594041,146.2,146.16,6.8382]
[1750842905187,6.8376,146.18,146.15,9.0354]
[1750842905682,6.8376,146.18,146.15,2.1968]
[1750842905986,6.837,146.19,146.16,6.8382]
[1750842907584,6.837,146.19,146.17,6.8377]
[1750842907785,6.837,146.19,146.15,2.1968]
[1750842907984,36.38,146.24,146.15,2.1968]
[1750842908185,3.36594041,146.23,146.16,3.36594041]
[1750842908588,3.36594041,146.23,146.19,6.8368]
[1750842908778,3.36594041,146.23,146.16,3.36594041]
[1750842908977,10.20094041,146.23,146.2,6.8361]
[1750842909286,36.38,146.24,146.18,39.74594041]
[1750842909785,6.835,146.23,146.18,39.74594041]
[1750842910284,6.835,146.23,146.21,6.8359]
[1750842912985,6.8355,146.22,146.2,6.8362]
[1750842913186,3.36594041,146.26,146.2,6.8362]
[1750842913381,3.36594041,146.26,146.18,39.74594041]
[1750842914084,6.8347,146.24,146.21,6.8358]
[1750842914284,36.36,146.27,146.2,3.36594041]
[1750842914585,1.3663,146.3,146.18,36.38]
[1750842914586,39.72594041,146.3,146.22,3.36594041]
[1750842914887,39.72594041,146.3,146.22,39.72594041]
[1750842915388,6.8324,146.29,146.22,39.72594041]
[1750842916083,6.8324,146.29,146.27,6.8331]
[1750842916788,6.8324,146.29,146.26,6.8333]
[1750842917490,6.8324,146.29,146.27,6.8331]
[1750842917993,6.8324,146.29,146.22,39.72594041]
[1750842918188,36.36,146.3,146.24,3.36594041]
[1750842918390,3.36594041,146.32,146.25,2.4134]
[1750842918788,6.832,146.3,146.25,2.4134]
[1750842919295,6.832,146.3,146.27,6.8328]
[1750842919491,6.832,146.3,146.25,2.4134]
[1750842919789,6.832,146.3,146.26,6.8333]
[1750842919993,6.832,146.3,146.25,2.4134]
[1750842920696,3.36594041,146.3,146.22,39.72594041]
[1750842920993,3.36594041,146.3,146.24,3.36594041]
[1750842921190,6.8315,146.31,146.24,3.36594041]
[1750842921592,6.8315,146.31,146.28,6.8323]
[1750842921798,6.8318,146.3,146.28,6.8323]
[1750842922093,3.36594041,146.3,146.24,3.36594041]
[1750842922496,10.19784041,146.3,146.27,6.8328]
[1750842922795,3.36594041,146.3,146.27,6.8328]
[1750842923192,10.19784041,146.3,146.27,6.8328]
[1750842923389,10.19784041,146.3,146.28,6.8326]
[1750842923589,3.36594041,146.3,146.28,6.8326]
[1750842923992,3.36594041,146.3,146.24,3.36594041]
[1750842924600,10.19694041,146.32,146.29,6.8319]
[1750842925198,6.8313,146.31,146.29,6.8319]
[1750842925599,3.36594041,146.32,146.28,6.8324]
[1750842926097,6.8313,146.31,146.28,6.8324]
[1750842926697,6.8313,146.31,146.29,6.8321]
[1750842927099,39.72594041,146.33,146.26,36.34]
[1750842927599,46.55654041,146.33,146.27,2.2554]
[1750842927896,39.72594041,146.33,146.27,2.2554]
[1750842928591,3.36594041,146.33,146.27,5.62134041]
[1750842928893,3.36594041,146.35,146.29,3.36594041]